Workbook

Sheet 심의안건
A1: 2018년도 제7회 예천군 보조금심의위원회 대상자선정심의 조서
K2: (단위 : 천원)
A3: 부서명 | B3: 보 조 사 업 자 | C3: 보 조 사 업 명 | D3: 과목명 | E3: 사 업 내 용 | F3: 2017년 지원액 | G3: 계 | H3: 보조금 | I3: 자부담 | J3: 1차(해당부서) | K3: 2차(예산부서) | L3: 3차(위원회)
C4: 28건 | F4: =F5+F7+F9+F11+F24 -> 1,172,000 | G4: =G5+G7+G9+G11+G24 -> 1,027,130 | H4: 495,695 | I4: 531,435 | J4: 495,695 | K4: 495,695
A5: 주민복지과 소계 | C5: =SUBTOTAL(103,C6)&"건" -> 1건 | F5: =SUBTOTAL(9,F6) -> 5,000 | G5: 7,000 | H5: 5,000 | I5: 2,000 | J5: 5,000 | K5: 5,000
A6: 주민복지과 | B6: (사)한국노인복지봉사회 경북예천지회 | C6: 2018 어르신 효 한마당 행사지원 | D6: 민간행사사업보조 | E6: 어르신 효 한마당 행사지원 | F6: 5,000 | G6: 7,000 | H6: 5,000 | I6: 2,000 | J6: 5,000 | K6: 5,000
A7: 새마을경제과 소계 | C7: =SUBTOTAL(103,C8:C8)&"건" -> 1건 | F7: =SUBTOTAL(9,F8:F8) -> 0 | G7: 175,588 | H7: 87,794 | I7: 87,794 | J7: 87,794 | K7: 87,794
A8: 새마을경제과 | B8: 예천읍 맛고을길 34-1 이미영 외 34명 (대상자 내역 별지) | C8: 소상공인 경영안정 지원사업 | D8: 민간자본사업보조 (자체재원) | E8: 175,588천원 * 1식 * 50% | G8: 175,588 | H8: 87,794 | I8: 87,794 | J8: 87,794 | K8: 87,794
A9: 환경관리과 소계 | C9: =SUBTOTAL(103,C10)&"건" -> 1건 | F9: 0 | G9: =SUBTOTAL(9,G10) -> 405,000 | H9: =SUBTOTAL(9,H10) -> 158,340 | I9: =SUBTOTAL(9,I10) -> 246,660 | J9: =SUBTOTAL(9,J10) -> 158,340 | K9: =SUBTOTAL(9,K10) -> 158,340
A10: 환경관리과 | B10: 예천군 은풍면 김문기 외 8명 (대상자 내역 별지) | C10: 예천군 전기자동차 민간보급사업 | D10: 민간자본사업보조 | E10: 45,000천원 * 1식 * 40% | G10: =H10+I10 -> 405,000 | H10: 158,340 | I10: 246,660 | J10: 158,340 | K10: 158,340
A11: 농정과 소계 | C11: =SUBTOTAL(103,C12:C23)&"건" -> 12건 | F11: =SUBTOTAL(9,F12:F23) -> 785,500 | G11: =SUM(G12:G23) -> 249,842 | H11: =SUBTOTAL(9,H12:H23) -> 138,961 | I11: =SUBTOTAL(9,I12:I23) -> 110,881 | J11: =SUBTOTAL(9,J12:J23) -> 138,961 | K11: =SUBTOTAL(9,K12:K23) -> 138,961
A12: 농정과 | B12: 개포면 풍정1길 64 정선희 외 24명 (대상자 내역 별지) | C12: 여성농업인 농작물 편의장비 지원(다용도작업대) | D12: 민간자본사업보조 | E12: 500천원 * 25대 * 80% | F12: 2,400 | G12: =SUM(H12:I12) -> 12,500 | H12: 10,000 | I12: 2,500 | J12: 10,000 | K12: 10,000
A13: 농정과 | B13: 개포면 송담길 32 김계분 외 30명 (대상자 내역 별지) | C13: 여성농업인 농작물 편의장비 지원 (주행식 예초기) | D13: 민간자본사업보조 | E13: 300천원 * 31대 * 80% | G13: =SUM(H13:I13) -> 9,300 | H13: 7,440 | I13: 1,860 | J13: 7,440 | K13: 7,440
A14: 농정과 | B14: 예천읍 상동길 72 권재덕 외 2명 (대상자 내역 별지) | C14: 벼 생력화장비 지원사업 | D14: 민간자본사업보조 | E14: 10,000천원 * 3대 * 50% | F14: 150,000 | G14: =SUM(H14:I14) -> 30,000 | H14: 15,000 | I14: 15,000 | J14: 15,000 | K14: 15,000
A15: 농정과 | B15: 효자면 은풍로 960 이갑순 외 9명 (대상자 내역 별지) | C15: 중소형농기계 지원 | D15: 민간자본사업보조 | E15: 2,000천원 * 10대 * 50% | F15: 375,600 | G15: 20,000 | H15: 10,000 | I15: 10,000 | J15: 10,000 | K15: 10,000
A16: 농정과 | B16: 보문면 독죽골길 77 김동명 | C16: 인력절감승용관리기 | D16: 민간자본사업보조 | E16: 10,000천원 * 1대 * 50% | F16: 50,000 | G16: 20,000 | H16: 10,000 | I16: 10,000 | J16: 10,000 | K16: 10,000
A17: 농정과 | B17: 호명면 행복로 230, 204동 502호 최수봉 외 4명 (대상자 내역 별지) | C17: 귀농인 영농기반 지원사업 | D17: 민간자본사업보조 | E17: 5,000천원 * 5농가 * 80% | F17: 120,000 | G17: 25,000 | H17: 20,000 | I17: 5,000 | J17: 20,000 | K17: 20,000
A18: 농정과 | B18: 용궁면 대은길 56-14 윤호현 | C18: 벼 육묘 녹화장 설치 지원 | D18: 민간자본보조 | E18: 11,000천원 * 1개소 * 50% | G18: 11,000 | H18: 5,500 | I18: 5,500 | J18: 5,500 | K18: 5,500
A19: 농정과 | B19: 은풍면 은풍로 144 김태호 | C19: 우수 농특산물 포장재 개선 지원사업 | D19: 민간자본사업보조 | E19: 2천원 * 5,000매 * 50% | F19: 87,500 | G19: 10,000 | H19: 5,000 | I19: 5,000 | J19: 5,000 | K19: 5,000
A20: 농정과 | B20: 호명면 내실1길 104-3 김현수 | C20: 소득작목육성지원 (하우스생력화장비) | D20: 민간자본사업보조 | E20: 1,100천원 * 1식 * 50% | G20: 1,100 | H20: 550 | I20: 550 | J20: 550 | K20: 550
A21: 농정과 | B21: 용궁면 황목근길 176-24 엄종필 | C21: 시설원예현대화 (내부공기순환팬) | D21: 민간자본사업보조 | E21: 180천원 * 10개 * 50% | G21: 1,800 | H21: 900 | I21: 900 | J21: 900 | K21: 900
A22: 농정과 | B22: 풍양면 오지길 25 오덕식 외 1명 (대상자 내역 별지) | C22: 원예산업육성지원 (양파정식기) | D22: 민간자본사업보조 | E22: 50,000천원 * 2대 * 50% | G22: 100,000 | H22: 50,000 | I22: 50,000 | J22: 50,000 | K22: 50,000
A23: 농정과 | B23: 예천읍 대심1길 86 최태식 외 3명 (대상자 내역 별지) | C23: 특용작물(인삼)생산시설현대화 (점적관수사업) | D23: 민간자본사업보조 | E23: 9,142천원 * 1개소 * 50% | G23: 9,142 | H23: =G23*0.5 -> 4,571 | I23: =G23*0.5 -> 4,571 | J23: =H23 -> 4,571 | K23: =I23 -> 4,571
A24: 산림축산과 소계 | C24: =SUBTOTAL(103,C25:C37)&"건" -> 13건 | F24: =SUBTOTAL(9,F25:F37) -> 381,500 | G24: =SUBTOTAL(9,G25:G37) -> 189,700 | H24: 105,600 | I24: 84,100 | J24: 105,600 | K24: 105,600
A25: 산림축산과 | B25: 감천면 장산마촌길 126-1 김명종 | C25: 한우농가 사료자동급이기 지원사업 | D25: 민간자본사업보조 | E25: 13,000,000원 * 1대 * 60% | F25: 31,200 | G25: =H25+I25 -> 13,000 | H25: 7,800 | I25: 5,200 | J25: 7,800 | K25: 7,800
A26: 산림축산과 | B26: 지보면 오송길 86-48 변병현 | C26: 친환경 전동운반기 지원사업 | D26: 민간자본사업보조 | E26: 2,000,000원 * 1대 * 60% | F26: 12,000 | G26: =H26+I26 -> 2,000 | H26: 1,200 | I26: 800 | J26: 1,200 | K26: 1,200
A27: 산림축산과 | B27: 호명면 담암길 37-32 김종수 외 1명 (대상자 내역 별지) | C27: 한우보정용 개체잠금장치 지원사업 | D27: 민간자본사업보조 | E27: 60,000원 * 32두 * 50% | F27: 30,000 | G27: 1,920 | H27: 960 | I27: 960 | J27: 960 | K27: 960
A28: 산림축산과 | B28: 유천면 예성로 681 강상구 | C28: 한우 미네랄블럭 지원사업 | D28: 민간자본사업보조 | E28: 10,000원 * 12개 * 60% | F28: 24,300 | G28: 120 | H28: 72 | I28: 48 | J28: 72 | K28: 72
A29: 산림축산과 | B29: 지보면 소화3길 20 김수승 | C29: 염소 사료급이기 지원사업 | D29: 민간자본사업보조 | E29: 200,000원 * 3개 * 60% | F29: 12,000 | G29: 600 | H29: 360 | I29: 240 | J29: 360 | K29: 360
A30: 산림축산과 | B30: 지보면 도화2길 15-9 백춘기 외 1명 (대상자 내역 별지) | C30: 면역강화용사료첨가제 지원사업 | D30: 민간자본사업보조 | E30: 30,000원 * 25포 * 70% | F30: 147,000 | G30: 750 | H30: 525 | I30: 225 | J30: 525 | K30: 525
A31: 산림축산과 | B31: 유천면 송전길 4-1 정창수 외 1명 (대상자 내역 별지) | C31: 어린송아지용양질조사료 지원사업 | D31: 민간자본사업보조 | E31: 600원 * 3,600kg * 30% | G31: 2,160 | H31: 648 | I31: 1,512 | J31: 648 | K31: 648
A32: 산림축산과 | B32: 풍양면 상풍로 1355-5 김영복 외 35명 (대상자 내역 별지) | C32: 벌꿀 위생저장조 지원사업 | D32: 민간자본사업보조 | E32: 370,000원 * 80개 * 60% | G32: 29,600 | H32: 17,760 | I32: 11,840 | J32: 17,760 | K32: 17,760
A33: 산림축산과 | B33: 호명면 양궁로555-5 김사대 외 20명 (대상자 내역 별지) | C33: 토종벌 종보전 지원사업 | D33: 민간자본사업보조 | E33: 500,000원 * 30군 * 80% | F33: 20,000 | G33: 15,000 | H33: 12,000 | I33: 3,000 | J33: 12,000 | K33: 12,000
A34: 산림축산과 | B34: 예천읍 구남골길 111 진승환 외 4명 (대상자 내역 별지) | C34: 불량모돈 갱신 지원사업 | D34: 민간자본사업보조 | E34: 600,000원 * 22두 * 50% | F34: 105,000 | G34: 13,200 | H34: 6,600 | I34: 6,600 | J34: 6,600 | K34: 6,600
A35: 산림축산과 | B35: 예천읍 충효로 847-12 윤재연 외 12명 (대상자 내역 별지) | C35: 가금농가 CCTV 등 방역인프라 설치지원 | D35: 민간자본사업보조 | E35: 5,000천원 * 1식 * 60% * 13개소 | G35: 65,000 | H35: 39,000 | I35: 26,000 | J35: 39,000 | K35: 39,000
A36: 산림축산과 | B36: 유천면 매산리 2 박철구 외 4명 (대상자 내역 별지) | C36: 퇴비사 신축(자체사업) 지원 | D36: 민간자본사업보조 | E36: 9,000천원 * 5개소 * 40% | G36: 45,000 | H36: 18,000 | I36: 27,000 | J36: 18,000 | K36: 18,000
A37: 산림축산과 | B37: 효자면 보리밭길 43 박수환 외 1명 (대상자 내역 별지) | C37: 축산분뇨처리용 톱밥지원 | D37: 민간자본사업보조 | E37: 3천원 * 450포 * 50% | G37: 1,350 | H37: 675 | I37: 675 | J37: 675 | K37: 675

Sheet 대상자별지내역
A1: 2018년도 제7회 예천군 보조금심의위원회 대상자내역 별지 조서
F2: . | L2: (단위 : 천원)
A3: 부서명 | B3: 보 조 사 업 자 | D3: 보 조 사 업 명 | E3: 과목명 | F3: 사 업 내 용 | G3: 2017년 지원액 | H3: 계 | I3: 보조금 | J3: 자부담 | K3: 1차(해당부서) | L3: 2차(예산부서) | M3: 3차(위원회)
B4: 주소 | C4: 성명
A5: 소계 | D5: =SUBTOTAL(103,D6:D40)&"건" -> 35건 | G5: =SUBTOTAL(9,G6:G40) -> 0 | H5: 175,588 | I5: 87,794 | J5: 87,794 | K5: 87,794 | L5: 87,794
A6: 새마을경제과 | B6: 예천읍 맛고을길 34-1 | C6: 이미영 | D6: 소상공인 경영안정 지원사업 | E6: 민간자본사업보조 | F6: 2,870천원 * 1식 * 50% | H6: =SUM(I6:J6) -> 2,870 | I6: 1,435 | J6: 1,435 | K6: 1,435 | L6: 1,435
A7: 새마을경제과 | B7: 예천읍 맛고을길 50, 1층 | C7: 김원자 | D7: 소상공인 경영안정 지원사업 | E7: 민간자본사업보조 | F7: 10,000천원 * 1식 * 50% | H7: 10,000 | I7: 5,000 | J7: 5,000 | K7: 5,000 | L7: 5,000
A8: 새마을경제과 | B8: 감천면 포리2길 5 | C8: 최순자 | D8: 소상공인 경영안정 지원사업 | E8: 민간자본사업보조 | F8: 10,000천원 * 1식 * 50% | H8: 10,000 | I8: 5,000 | J8: 5,000 | K8: 5,000 | L8: 5,000
A9: 새마을경제과 | B9: 용궁면 용궁시장길 28-5 | C9: 이수남 | D9: 소상공인 경영안정 지원사업 | E9: 민간자본사업보조 | F9: 5,840천원 * 1식 * 50% | H9: 5,840 | I9: 2,920 | J9: 2,920 | K9: 2,920 | L9: 2,920
A10: 새마을경제과 | B10: 감천면 석송로 313-11 | C10: 류갑숙 | D10: 소상공인 경영안정 지원사업 | E10: 민간자본사업보조 | F10: 4,000천원 * 1식 * 50% | H10: 4,000 | I10: 2,000 | J10: 2,000 | K10: 2,000 | L10: 2,000
A11: 새마을경제과 | B11: 예천읍 효자로 80-1 | C11: 윤순연 | D11: 소상공인 경영안정 지원사업 | E11: 민간자본사업보조 | F11: 8,640천원 * 1식 * 50% | H11: 8,640 | I11: 4,320 | J11: 4,320 | K11: 4,320 | L11: 4,320
A12: 새마을경제과 | B12: 예천읍 효자로 81 | C12: 김상한 | D12: 소상공인 경영안정 지원사업 | E12: 민간자본사업보조 | F12: 4,000천원 * 1식 * 50% | H12: 4,000 | I12: 2,000 | J12: 2,000 | K12: 2,000 | L12: 2,000
A13: 새마을경제과 | B13: 은풍면 은풍로 96 | C13: 김정남 | D13: 소상공인 경영안정 지원사업 | E13: 민간자본사업보조 | F13: 3,000천원 * 1식 * 50% | H13: 3,000 | I13: 1,500 | J13: 1,500 | K13: 1,500 | L13: 1,500
A14: 새마을경제과 | B14: 예천읍 맛고을길 36 | C14: 황보정일 | D14: 소상공인 경영안정 지원사업 | E14: 민간자본사업보조 | F14: 4,000천원 * 1식 * 50% | H14: 4,000 | I14: 2,000 | J14: 2,000 | K14: 2,000 | L14: 2,000
A15: 새마을경제과 | B15: 예천읍 상설시장1길 28-1 | C15: 김숙자 | D15: 소상공인 경영안정 지원사업 | E15: 민간자본사업보조 | F15: 10,000천원 * 1식 * 50% | H15: 10,000 | I15: 5,000 | J15: 5,000 | K15: 5,000 | L15: 5,000
A16: 새마을경제과 | B16: 예천읍 시장로 63-1, 1층 | C16: 최병환 | D16: 소상공인 경영안정 지원사업 | E16: 민간자본사업보조 | F16: 2,000천원 * 1식 * 50% | H16: 2,000 | I16: 1,000 | J16: 1,000 | K16: 1,000 | L16: 1,000
A17: 새마을경제과 | B17: 예천읍 맛고을길 73 | C17: 이은경 | D17: 소상공인 경영안정 지원사업 | E17: 민간자본사업보조 | F17: 4,000천원 * 1식 * 50% | H17: 4,000 | I17: 2,000 | J17: 2,000 | K17: 2,000 | L17: 2,000
A18: 새마을경제과 | B18: 은풍면 은풍로 91 | C18: 권후자 | D18: 소상공인 경영안정 지원사업 | E18: 민간자본사업보조 | F18: 1,902천원 * 1식 * 50% | H18: 1,902 | I18: 951 | J18: 951 | K18: 951 | L18: 951
A19: 새마을경제과 | B19: 예천읍 효자로 74-1 | C19: 김재수 | D19: 소상공인 경영안정 지원사업 | E19: 민간자본사업보조 | F19: 4,000천원 * 1식 * 50% | H19: 4,000 | I19: 2,000 | J19: 2,000 | K19: 2,000 | L19: 2,000
A20: 새마을경제과 | B20: 감천면 석송로 313-14 | C20: 임재분 | D20: 소상공인 경영안정 지원사업 | E20: 민간자본사업보조 | F20: 10,000천원 * 1식 * 50% | H20: 10,000 | I20: 5,000 | J20: 5,000 | K20: 5,000 | L20: 5,000
A21: 새마을경제과 | B21: 예천읍 시장로 91 | C21: 정직 | D21: 소상공인 경영안정 지원사업 | E21: 민간자본사업보조 | F21: 4,000천원 * 1식 * 50% | H21: 4,000 | I21: 2,000 | J21: 2,000 | K21: 2,000 | L21: 2,000
A22: 새마을경제과 | B22: 보문면 오암길 7 | C22: 김미경 | D22: 소상공인 경영안정 지원사업 | E22: 민간자본사업보조 | F22: 5,404천원 * 1식 * 50% | H22: 5,404 | I22: 2,702 | J22: 2,702 | K22: 2,702 | L22: 2,702
A23: 새마을경제과 | B23: 예천읍 상설시장1길 6-1 | C23: 김우진 | D23: 소상공인 경영안정 지원사업 | E23: 민간자본사업보조 | F23: 10,000천원 * 1식 * 50% | H23: 10,000 | I23: 5,000 | J23: 5,000 | K23: 5,000 | L23: 5,000
A24: 새마을경제과 | B24: 예천읍 중앙로 30 | C24: 서지영 | D24: 소상공인 경영안정 지원사업 | E24: 민간자본사업보조 | F24: 2,850천원 * 1식 * 50% | H24: 2,850 | I24: 1,425 | J24: 1,425 | K24: 1,425 | L24: 1,425
A25: 새마을경제과 | B25: 풍양면 낙상2길 39 | C25: 김현숙 | D25: 소상공인 경영안정 지원사업 | E25: 민간자본사업보조 | F25: 2,500천원 * 1식 * 50% | H25: 2,500 | I25: 1,250 | J25: 1,250 | K25: 1,250 | L25: 1,250
A26: 새마을경제과 | B26: 예천읍 상설시장1길 13, 102호(신영그린빌) | C26: 김봉수 | D26: 소상공인 경영안정 지원사업 | E26: 민간자본사업보조 | F26: 4,000천원 * 1식 * 50% | H26: 4,000 | I26: 2,000 | J26: 2,000 | K26: 2,000 | L26: 2,000
A27: 새마을경제과 | B27: 예천읍 충효로 267 | C27: 김주배 | D27: 소상공인 경영안정 지원사업 | E27: 민간자본사업보조 | F27: 4,000천원 * 1식 * 50% | H27: 4,000 | I27: 2,000 | J27: 2,000 | K27: 2,000 | L27: 2,000
A28: 새마을경제과 | B28: 예천읍 상설시장1길 17 | C28: 이선자 | D28: 소상공인 경영안정 지원사업 | E28: 민간자본사업보조 | F28: 3,000천원 * 1식 * 50% | H28: 3,000 | I28: 1,500 | J28: 1,500 | K28: 1,500 | L28: 1,500
A29: 새마을경제과 | B29: 호명면 행복로 215, 104동 1301호(호반베르디움1차) | C29: 이은관 | D29: 소상공인 경영안정 지원사업 | E29: 민간자본사업보조 | F29: 4,000천원 * 1식 * 50% | H29: 4,000 | I29: 2,000 | J29: 2,000 | K29: 2,000 | L29: 2,000
A30: 새마을경제과 | B30: 예천읍 시장로 65-2 | C30: 김미정 | D30: 소상공인 경영안정 지원사업 | E30: 민간자본사업보조 | F30: 1,320천원 * 1식 * 50% | H30: 1,320 | I30: 660 | J30: 660 | K30: 660 | L30: 660
A31: 새마을경제과 | B31: 예천읍 왕신길 245 | C31: 김성락 | D31: 소상공인 경영안정 지원사업 | E31: 민간자본사업보조 | F31: 4,000천원 * 1식 * 50% | H31: 4,000 | I31: 2,000 | J31: 2,000 | K31: 2,000 | L31: 2,000
A32: 새마을경제과 | B32: 예천읍 시장로 63 | C32: 이숙희 | D32: 소상공인 경영안정 지원사업 | E32: 민간자본사업보조 | F32: 3,000천원 * 1식 * 50% | H32: 3,000 | I32: 1,500 | J32: 1,500 | K32: 1,500 | L32: 1,500
A33: 새마을경제과 | B33: 예천읍 시장로 144 | C33: 장덕수 | D33: 소상공인 경영안정 지원사업 | E33: 민간자본사업보조 | F33: 4,000천원 * 1식 * 50% | H33: 4,000 | I33: 2,000 | J33: 2,000 | K33: 2,000 | L33: 2,000
A34: 새마을경제과 | B34: 개포면 입암리 195-1 | C34: 김경자 | D34: 소상공인 경영안정 지원사업 | E34: 민간자본사업보조 | F34: 4,000천원 * 1식 * 50% | H34: 4,000 | I34: 2,000 | J34: 2,000 | K34: 2,000 | L34: 2,000
A35: 새마을경제과 | B35: 예천읍 효자로 123 | C35: 김응기 | D35: 소상공인 경영안정 지원사업 | E35: 민간자본사업보조 | F35: 4,000천원 * 1식 * 50% | H35: 4,000 | I35: 2,000 | J35: 2,000 | K35: 2,000 | L35: 2,000
A36: 새마을경제과 | B36: 예천읍 중앙로 35-2 | C36: 송영한 | D36: 소상공인 경영안정 지원사업 | E36: 민간자본사업보조 | F36: 10,000천원 * 1식 * 50% | H36: 10,000 | I36: 5,000 | J36: 5,000 | K36: 5,000 | L36: 5,000
A37: 새마을경제과 | B37: 예천읍 상설시장1길 4 | C37: 이재근 | D37: 소상공인 경영안정 지원사업 | E37: 민간자본사업보조 | F37: 10,000천원 * 1식 * 50% | H37: 10,000 | I37: 5,000 | J37: 5,000 | K37: 5,000 | L37: 5,000
A38: 새마을경제과 | B38: 예천읍 한천길 11 | C38: 심미자 | D38: 소상공인 경영안정 지원사업 | E38: 민간자본사업보조 | F38: 4,000천원 * 1식 * 50% | H38: 4,000 | I38: 2,000 | J38: 2,000 | K38: 2,000 | L38: 2,000
A39: 새마을경제과 | B39: 용궁면 용궁로 116 | C39: 김의숙 | D39: 소상공인 경영안정 지원사업 | E39: 민간자본사업보조 | F39: 4,800천원 * 1식 * 50% | H39: 4,800 | I39: 2,400 | J39: 2,400 | K39: 2,400 | L39: 2,400
A40: 새마을경제과 | B40: 예천읍 맛고을길 52 | C40: 황영습 | D40: 소상공인 경영안정 지원사업 | E40: 민간자본사업보조 | F40: 2,462천원 * 1식 * 50% | H40: 2,462 | I40: 1,231 | J40: 1,231 | K40: 1,231 | L40: 1,231
A41: 소계 | D41: =SUBTOTAL(103,D42:D50)&"건" -> 9건 | H41: =SUM(H42:H50) -> 405,000 | I41: =SUM(I42:I50) -> 158,340 | J41: 246,660 | K41: 158,340 | L41: 158,340
A42: 환경관리과 | B42: 은풍면 은풍로 225-12 | C42: 김문기 | D42: 예천군 전기자동차 민간보급사업 | E42: 민간자본사업보조 | F42: 45,000천원 * 1식 * 40% | H42: 45,000 | I42: 18,000 | J42: =H42-I42 -> 27,000 | K42: 18,000 | L42: 18,000
A43: 환경관리과 | B43: 지보면 지풍로 183-18 | C43: 이 건 | D43: 예천군 전기자동차 민간보급사업 | E43: 민간자본사업보조 | F43: 45,000천원 * 1식 * 40% | H43: 45,000 | I43: 16,170 | J43: =H43-I43 -> 28,830 | K43: 16,170 | L43: 16,170
A44: 환경관리과 | B44: 호명면 양지로 14 221동101호 (도청신도시호반베르디움) | C44: 김건우 | D44: 예천군 전기자동차 민간보급사업 | E44: 민간자본사업보조 | F44: 45,000천원 * 1식 * 40% | H44: 45,000 | I44: 16,170 | J44: 28,830 | K44: 16,170 | L44: 16,170
A45: 환경관리과 | B45: 예천군 지보면 매창길 89 | C45: 김규리 | D45: 예천군 전기자동차 민간보급사업 | E45: 민간자본사업보조 | F45: 45,000천원 * 1식 * 40% | H45: 45,000 | I45: 18,000 | J45: 27,000 | K45: 18,000 | L45: 18,000
A46: 환경관리과 | B46: 효자면 제촌길 55-17 | C46: 황윤희 | D46: 예천군 전기자동차 민간보급사업 | E46: 민간자본사업보조 | F46: 45,000천원 * 1식 * 40% | H46: 45,000 | I46: 18,000 | J46: 27,000 | K46: 18,000 | L46: 18,000
A47: 환경관리과 | B47: 풍양면 수산못길 119 | C47: 최 웅 | D47: 예천군 전기자동차 민간보급사업 | E47: 민간자본사업보조 | F47: 45,000천원 * 1식 * 40% | H47: 45,000 | I47: 18,000 | J47: 27,000 | K47: 18,000 | L47: 18,000
A48: 환경관리과 | B48: 용궁면 용궁로 51-26 | C48: 최경자 | D48: 예천군 전기자동차 민간보급사업 | E48: 민간자본사업보조 | F48: 45,000천원 * 1식 * 40% | H48: 45,000 | I48: 18,000 | J48: 27,000 | K48: 18,000 | L48: 18,000
A49: 환경관리과 | B49: 호명면 검무로27 우방센텀 311동1802호 | C49: 김성자 | D49: 예천군 전기자동차 민간보급사업 | E49: 민간자본사업보조 | F49: 45,000천원 * 1식 * 40% | H49: 45,000 | I49: 18,000 | J49: 27,000 | K49: 18,000 | L49: 18,000
A50: 환경관리과 | B50: 호명면 검무로27,우방센텀 304동1603호 | C50: 이용택 | D50: 예천군 전기자동차 민간보급사업 | E50: 민간자본사업보조 | F50: 45,000천원 * 1식 * 40% | H50: 45,000 | I50: 18,000 | J50: 27,000 | K50: 18,000 | L50: 18,000
A51: 소계 | D51: =SUBTOTAL(103,D52:D131)&"건" -> 80건 | H51: =SUM(H52:H131) -> 206,942 | I51: =SUM(I52:I131) -> 117,011 | J51: =SUM(J52:J131) -> 89,931 | K51: 117,011 | L51: 117,011
A52: 농정과 | B52: 개포면 풍정1길 64 | C52: 정선희 | D52: 여성농업인 농작물 편의장비 지원 (다용도작업대) | E52: 민간자본사업보조 | F52: 500,000원 * 1대 * 80% | H52: =SUM(I52:J52) -> 500 | I52: 400 | J52: 100 | K52: 400 | L52: 400
A53: 농정과 | B53: 개포면 송담길 142-24 | C53: 정옥례 | D53: 여성농업인 농작물 편의장비 지원 (다용도작업대) | E53: 민간자본사업보조 | F53: 500,000원 * 1대 * 80% | H53: =SUM(I53:J53) -> 500 | I53: 400 | J53: 100 | K53: 400 | L53: 400
A54: 농정과 | B54: 개포면 용개로 1091-3 | C54: 엄연수 | D54: 여성농업인 농작물 편의장비 지원 (다용도작업대) | E54: 민간자본사업보조 | F54: 500,000원 * 1대 * 80% | H54: 500 | I54: 400 | J54: 100 | K54: 400 | L54: 400
A55: 농정과 | B55: 개포면 금동1길 12 | C55: 황명순 | D55: 여성농업인 농작물 편의장비 지원 (다용도작업대) | E55: 민간자본사업보조 | F55: 500,000원 * 1대 * 80% | H55: 500 | I55: 400 | J55: 100 | K55: 400 | L55: 400
A56: 농정과 | B56: 보문면 독죽골길 59 | C56: 권희자 | D56: 여성농업인 농작물 편의장비 지원 (다용도작업대) | E56: 민간자본사업보조 | F56: 500,000원 * 1대 * 80% | H56: 500 | I56: 400 | J56: 100 | K56: 400 | L56: 400
A57: 농정과 | B57: 예천읍 왕신길 252-2 | C57: 김대아 | D57: 여성농업인 농작물 편의장비 지원 (다용도작업대) | E57: 민간자본사업보조 | F57: 500,000원 * 1대 * 80% | H57: 500 | I57: 400 | J57: 100 | K57: 400 | L57: 400
A58: 농정과 | B58: 용궁면 원당길 40-26 | C58: 이금자 | D58: 여성농업인 농작물 편의장비 지원 (다용도작업대) | E58: 민간자본사업보조 | F58: 500,000원 * 1대 * 80% | H58: 500 | I58: 400 | J58: 100 | K58: 400 | L58: 400
A59: 농정과 | B59: 용궁면 외무길 94-7 | C59: 박명자 | D59: 여성농업인 농작물 편의장비 지원 (다용도작업대) | E59: 민간자본사업보조 | F59: 500,000원 * 1대 * 80% | H59: 500 | I59: 400 | J59: 100 | K59: 400 | L59: 400
A60: 농정과 | B60: 용궁면 월오길 104-2 | C60: 배순남 | D60: 여성농업인 농작물 편의장비 지원 (다용도작업대) | E60: 민간자본사업보조 | F60: 500,000원 * 1대 * 80% | H60: 500 | I60: 400 | J60: 100 | K60: 400 | L60: 400
A61: 농정과 | B61: 용문면 여각길 18-6 | C61: 김종순 | D61: 여성농업인 농작물 편의장비 지원 (다용도작업대) | E61: 민간자본사업보조 | F61: 500,000원 * 1대 * 80% | H61: 500 | I61: 400 | J61: 100 | K61: 400 | L61: 400
A62: 농정과 | B62: 유천면 송전길 1-4 | C62: 이분순 | D62: 여성농업인 농작물 편의장비 지원 (다용도작업대) | E62: 민간자본사업보조 | F62: 500,000원 * 1대 * 80% | H62: 500 | I62: 400 | J62: 100 | K62: 400 | L62: 400
A63: 농정과 | B63: 유천면 화지1길 49-11 | C63: 안동희 | D63: 여성농업인 농작물 편의장비 지원 (다용도작업대) | E63: 민간자본사업보조 | F63: 500,000원 * 1대 * 80% | H63: 500 | I63: 400 | J63: 100 | K63: 400 | L63: 400
A64: 농정과 | B64: 유천면 성평길 18-16 | C64: 김윤덕 | D64: 여성농업인 농작물 편의장비 지원 (다용도작업대) | E64: 민간자본사업보조 | F64: 500,000원 * 1대 * 80% | H64: 500 | I64: 400 | J64: 100 | K64: 400 | L64: 400
A65: 농정과 | B65: 유천면 화지2길 15-18 | C65: 이해란 | D65: 여성농업인 농작물 편의장비 지원 (다용도작업대) | E65: 민간자본사업보조 | F65: 500,000원 * 1대 * 80% | H65: 500 | I65: 400 | J65: 100 | K65: 400 | L65: 400
A66: 농정과 | B66: 은풍면 도효자로 922 | C66: 김태숙 | D66: 여성농업인 농작물 편의장비 지원 (다용도작업대) | E66: 민간자본사업보조 | F66: 500,000원 * 1대 * 80% | H66: 500 | I66: 400 | J66: 100 | K66: 400 | L66: 400
A67: 농정과 | B67: 지보면 어신2길81-56 | C67: 임순호 | D67: 여성농업인 농작물 편의장비 지원 (다용도작업대) | E67: 민간자본사업보조 | F67: 500,000원 * 1대 * 80% | H67: 500 | I67: 400 | J67: 100 | K67: 400 | L67: 400
A68: 농정과 | B68: 지보면 지보리길 138 | C68: 진미경 | D68: 여성농업인 농작물 편의장비 지원 (다용도작업대) | E68: 민간자본사업보조 | F68: 500,000원 * 1대 * 80% | H68: 500 | I68: 400 | J68: 100 | K68: 400 | L68: 400
A69: 농정과 | B69: 지보면 어신1길 93-12 | C69: 백정란 | D69: 여성농업인 농작물 편의장비 지원 (다용도작업대) | E69: 민간자본사업보조 | F69: 500,000원 * 1대 * 80% | H69: 500 | I69: 400 | J69: 100 | K69: 400 | L69: 400
A70: 농정과 | B70: 풍양면 청감길 30-4 | C70: 유정숙 | D70: 여성농업인 농작물 편의장비 지원 (다용도작업대) | E70: 민간자본사업보조 | F70: 500,000원 * 1대 * 80% | H70: 500 | I70: 400 | J70: 100 | K70: 400 | L70: 400
A71: 농정과 | B71: 풍양면 봉림길 57 | C71: 금순정 | D71: 여성농업인 농작물 편의장비 지원 (다용도작업대) | E71: 민간자본사업보조 | F71: 500,000원 * 1대 * 80% | H71: 500 | I71: 400 | J71: 100 | K71: 400 | L71: 400
A72: 농정과 | B72: 풍양면 공덕길 23 | C72: 이정옥 | D72: 여성농업인 농작물 편의장비 지원 (다용도작업대) | E72: 민간자본사업보조 | F72: 500,000원 * 1대 * 80% | H72: 500 | I72: 400 | J72: 100 | K72: 400 | L72: 400
A73: 농정과 | B73: 풍양면 청운3리길 33 | C73: 강대분 | D73: 여성농업인 농작물 편의장비 지원 (다용도작업대) | E73: 민간자본사업보조 | F73: 500,000원 * 1대 * 80% | H73: 500 | I73: 400 | J73: 100 | K73: 400 | L73: 400
A74: 농정과 | B74: 호명면 양궁로 555-6 | C74: 임점숙 | D74: 여성농업인 농작물 편의장비 지원 (다용도작업대) | E74: 민간자본사업보조 | F74: 500,000원 * 1대 * 80% | H74: 500 | I74: 400 | J74: 100 | K74: 400 | L74: 400
A75: 농정과 | B75: 호명면 종산길 203-25 | C75: 권은주 | D75: 여성농업인 농작물 편의장비 지원 (다용도작업대) | E75: 민간자본사업보조 | F75: 500,000원 * 1대 * 80% | H75: 500 | I75: 400 | J75: 100 | K75: 400 | L75: 400
A76: 농정과 | B76: 효자면 무장길 35-8 | C76: 문평순 | D76: 여성농업인 농작물 편의장비 지원 (다용도작업대) | E76: 민간자본사업보조 | F76: 500,000원 * 1대 * 80% | H76: 500 | I76: 400 | J76: 100 | K76: 400 | L76: 400
A77: 농정과 | B77: 개포면 송담길 32 | C77: 김계분 | D77: 여성농업인 농작물 편의장비 지원 (주행식 예초기) | E77: 민간자본사업보조 | F77: 300,000원 * 1대 * 80% | H77: 300 | I77: 240 | J77: 60 | K77: 240 | L77: 240
A78: 농정과 | B78: 보문면 무근열길 149 | C78: 김진선 | D78: 여성농업인 농작물 편의장비 지원 (주행식 예초기) | E78: 민간자본사업보조 | F78: 300,000원 * 1대 * 80% | H78: 300 | I78: 240 | J78: 60 | K78: 240 | L78: 240
A79: 농정과 | B79: 보문면 탑마을길 19 | C79: 김재은 | D79: 여성농업인 농작물 편의장비 지원 (주행식 예초기) | E79: 민간자본사업보조 | F79: 300,000원 * 1대 * 80% | H79: 300 | I79: 240 | J79: 60 | K79: 240 | L79: 240
A80: 농정과 | B80: 보면면 가거리길 33 | C80: 김순자 | D80: 여성농업인 농작물 편의장비 지원 (주행식 예초기) | E80: 민간자본사업보조 | F80: 300,000원 * 1대 * 80% | H80: 300 | I80: 240 | J80: 60 | K80: 240 | L80: 240
A81: 농정과 | B81: 보문면 산성길 773 | C81: 김점순 | D81: 여성농업인 농작물 편의장비 지원 (주행식 예초기) | E81: 민간자본사업보조 | F81: 300,000원 * 1대 * 80% | H81: 300 | I81: 240 | J81: 60 | K81: 240 | L81: 240
A82: 농정과 | B82: 보문면 독죽골길 59 | C82: 권희자 | D82: 여성농업인 농작물 편의장비 지원 (주행식 예초기) | E82: 민간자본사업보조 | F82: 300,000원 * 1대 * 80% | H82: 300 | I82: 240 | J82: 60 | K82: 240 | L82: 240
A83: 농정과 | B83: 예천읍 옥반골길 21 | C83: 홍경숙 | D83: 여성농업인 농작물 편의장비 지원 (주행식 예초기) | E83: 민간자본사업보조 | F83: 300,000원 * 1대 * 80% | H83: 300 | I83: 240 | J83: 60 | K83: 240 | L83: 240
A84: 농정과 | B84: 예천읍 노상리길 30 | C84: 최정규 | D84: 여성농업인 농작물 편의장비 지원 (주행식 예초기) | E84: 민간자본사업보조 | F84: 300,000원 * 1대 * 80% | H84: 300 | I84: 240 | J84: 60 | K84: 240 | L84: 240
A85: 농정과 | B85: 예천읍 군청길 35-13 | C85: 김영희 | D85: 여성농업인 농작물 편의장비 지원 (주행식 예초기) | E85: 민간자본사업보조 | F85: 300,000원 * 1대 * 80% | H85: 300 | I85: 240 | J85: 60 | K85: 240 | L85: 240
A86: 농정과 | B86: 용궁면 무지길 152 | C86: 이정희 | D86: 여성농업인 농작물 편의장비 지원 (주행식 예초기) | E86: 민간자본사업보조 | F86: 300,000원 * 1대 * 80% | H86: 300 | I86: 240 | J86: 60 | K86: 240 | L86: 240
A87: 농정과 | B87: 용궁면 덕계1길 132 | C87: 조동화 | D87: 여성농업인 농작물 편의장비 지원 (주행식 예초기) | E87: 민간자본사업보조 | F87: 300,000원 * 1대 * 80% | H87: 300 | I87: 240 | J87: 60 | K87: 240 | L87: 240
A88: 농정과 | B88: 용궁면 용개로 185 | C88: 이미희 | D88: 여성농업인 농작물 편의장비 지원 (주행식 예초기) | E88: 민간자본사업보조 | F88: 300,000원 * 1대 * 80% | H88: 300 | I88: 240 | J88: 60 | K88: 240 | L88: 240
A89: 농정과 | B89: 용궁면 무이서당길 40-30 | C89: 김정녀 | D89: 여성농업인 농작물 편의장비 지원 (주행식 예초기) | E89: 민간자본사업보조 | F89: 300,000원 * 1대 * 80% | H89: 300 | I89: 240 | J89: 60 | K89: 240 | L89: 240
A90: 농정과 | B90: 용문면 성현길 216 | C90: 김연옥 | D90: 여성농업인 농작물 편의장비 지원 (주행식 예초기) | E90: 민간자본사업보조 | F90: 300,000원 * 1대 * 80% | H90: 300 | I90: 240 | J90: 60 | K90: 240 | L90: 240
A91: 농정과 | B91: 용문면 상금시장길 48 | C91: 이영희 | D91: 여성농업인 농작물 편의장비 지원 (주행식 예초기) | E91: 민간자본사업보조 | F91: 300,000원 * 1대 * 80% | H91: 300 | I91: 240 | J91: 60 | K91: 240 | L91: 240
A92: 농정과 | B92: 용문면 두천길 22 | C92: 황수희 | D92: 여성농업인 농작물 편의장비 지원 (주행식 예초기) | E92: 민간자본사업보조 | F92: 300,000원 * 1대 * 80% | H92: 300 | I92: 240 | J92: 60 | K92: 240 | L92: 240
A93: 농정과 | B93: 용문면 금당실길 23-1 | C93: 박수옥 | D93: 여성농업인 농작물 편의장비 지원 (주행식 예초기) | E93: 민간자본사업보조 | F93: 300,000원 * 1대 * 80% | H93: 300 | I93: 240 | J93: 60 | K93: 240 | L93: 240
A94: 농정과 | B94: 용문면 도효자로 568 | C94: 정계희 | D94: 여성농업인 농작물 편의장비 지원 (주행식 예초기) | E94: 민간자본사업보조 | F94: 300,000원 * 1대 * 80% | H94: 300 | I94: 240 | J94: 60 | K94: 240 | L94: 240
A95: 농정과 | B95: 용문면 금당실길 65 | C95: 권귀남 | D95: 여성농업인 농작물 편의장비 지원 (주행식 예초기) | E95: 민간자본사업보조 | F95: 300,000원 * 1대 * 80% | H95: 300 | I95: 240 | J95: 60 | K95: 240 | L95: 240
A96: 농정과 | B96: 유천면 송전길 10 | C96: 임정매 | D96: 여성농업인 농작물 편의장비 지원 (주행식 예초기) | E96: 민간자본사업보조 | F96: 300,000원 * 1대 * 80% | H96: 300 | I96: 240 | J96: 60 | K96: 240 | L96: 240
A97: 농정과 | B97: 유천면 유용로 507-32 | C97: 윤옥희 | D97: 여성농업인 농작물 편의장비 지원 (주행식 예초기) | E97: 민간자본사업보조 | F97: 300,000원 * 1대 * 80% | H97: 300 | I97: 240 | J97: 60 | K97: 240 | L97: 240
A98: 농정과 | B98: 유천면 화전길 21-90 | C98: 강은숙 | D98: 여성농업인 농작물 편의장비 지원 (주행식 예초기) | E98: 민간자본사업보조 | F98: 300,000원 * 1대 * 80% | H98: 300 | I98: 240 | J98: 60 | K98: 240 | L98: 240
A99: 농정과 | B99: 유천면 유용로 507-18 | C99: 심창순 | D99: 여성농업인 농작물 편의장비 지원 (주행식 예초기) | E99: 민간자본사업보조 | F99: 300,000원 * 1대 * 80% | H99: 300 | I99: 240 | J99: 60 | K99: 240 | L99: 240
A100: 농정과 | B100: 은풍면 율곡1길 28-2 | C100: 안후불 | D100: 여성농업인 농작물 편의장비 지원 (주행식 예초기) | E100: 민간자본사업보조 | F100: 300,000원 * 1대 * 80% | H100: 300 | I100: 240 | J100: 60 | K100: 240 | L100: 240
A101: 농정과 | B101: 은풍면 송월길 91-8 | C101: 김경숙 | D101: 여성농업인 농작물 편의장비 지원 (주행식 예초기) | E101: 민간자본사업보조 | F101: 300,000원 * 1대 * 80% | H101: 300 | I101: 240 | J101: 60 | K101: 240 | L101: 240
A102: 농정과 | B102: 은풍면 도효자로 1165 | C102: 정숙자 | D102: 여성농업인 농작물 편의장비 지원 (주행식 예초기) | E102: 민간자본사업보조 | F102: 300,000원 * 1대 * 80% | H102: 300 | I102: 240 | J102: 60 | K102: 240 | L102: 240
A103: 농정과 | B103: 지보면 도화1길 7-12 | C103: 차민자 | D103: 여성농업인 농작물 편의장비 지원 (주행식 예초기) | E103: 민간자본사업보조 | F103: 300,000원 * 1대 * 80% | H103: 300 | I103: 240 | J103: 60 | K103: 240 | L103: 240
A104: 농정과 | B104: 호명면 담암길 73-3 | C104: 백성예 | D104: 여성농업인 농작물 편의장비 지원 (주행식 예초기) | E104: 민간자본사업보조 | F104: 300,000원 * 1대 * 80% | H104: 300 | I104: 240 | J104: 60 | K104: 240 | L104: 240
A105: 농정과 | B105: 효자면 음정길 50-6 | C105: 김낙선 | D105: 여성농업인 농작물 편의장비 지원 (주행식 예초기) | E105: 민간자본사업보조 | F105: 300,000원 * 1대 * 80% | H105: 300 | I105: 240 | J105: 60 | K105: 240 | L105: 240
A106: 농정과 | B106: 효자면 용소마길 41-3 | C106: 길문희 | D106: 여성농업인 농작물 편의장비 지원 (주행식 예초기) | E106: 민간자본사업보조 | F106: 300,000원 * 1대 * 80% | H106: 300 | I106: 240 | J106: 60 | K106: 240 | L106: 240
A107: 농정과 | B107: 감천면 석송로 349 | C107: 손차남 | D107: 여성농업인 농작물 편의장비 지원 (주행식 예초기) | E107: 민간자본사업보조 | F107: 300,000원 * 1대 * 80% | H107: 300 | I107: 240 | J107: 60 | K107: 240 | L107: 240
A108: 농정과 | B108: 예천읍 상동길 72 | C108: 권재덕 | D108: 벼 생력화장비 지원사업 | E108: 민간자본사업보조 | F108: 10,000,000원 * 1대 * 50% | H108: 10,000 | I108: 5,000 | J108: 5,000 | K108: 5,000 | L108: 5,000
A109: 농정과 | B109: 용문면 경천로 1151 | C109: 이덕의 | D109: 벼 생력화장비 지원사업 | E109: 민간자본사업보조 | F109: 10,000,000원 * 1대 * 50% | H109: 10,000 | I109: 5,000 | J109: 5,000 | K109: 5,000 | L109: 5,000
A110: 농정과 | B110: 유천면 손기길 43 | C110: 김정진 | D110: 벼 생력화장비 지원사업 | E110: 민간자본사업보조 | F110: 10,000,000원 * 1대 * 50% | H110: 10,000 | I110: 5,000 | J110: 5,000 | K110: 5,000 | L110: 5,000
A111: 농정과 | B111: 효자면 은풍로 960 | C111: 이갑순 | D111: 중소형농기계 지원사업 | E111: 민간자본사업보조 | F111: 2,000,000원 * 1대 * 50% | H111: 2,000 | I111: 1,000 | J111: 1,000 | K111: 1,000 | L111: 1,000
A112: 농정과 | B112: 감천면 만맛길 93-8 | C112: 조동광 | D112: 중소형농기계 지원사업 | E112: 민간자본사업보조 | F112: 2,000,000원 * 1대 * 50% | H112: 2,000 | I112: 1,000 | J112: 1,000 | K112: 1,000 | L112: 1,000
A113: 농정과 | B113: 예천읍 대심1길 62 | C113: 권오귀 | D113: 중소형농기계 지원사업 | E113: 민간자본사업보조 | F113: 2,000,000원 * 1대 * 50% | H113: 2,000 | I113: 1,000 | J113: 1,000 | K113: 1,000 | L113: 1,000
A114: 농정과 | B114: 지보면 대축길 176 | C114: 김영진 | D114: 중소형농기계 지원사업 | E114: 민간자본사업보조 | F114: 2,000,000원 * 1대 * 50% | H114: 2,000 | I114: 1,000 | J114: 1,000 | K114: 1,000 | L114: 1,000
A115: 농정과 | B115: 용궁면 용궁향교길 14 | C115: 박석태 | D115: 중소형농기계 지원사업 | E115: 민간자본사업보조 | F115: 2,000,000원 * 1대 * 50% | H115: 2,000 | I115: 1,000 | J115: 1,000 | K115: 1,000 | L115: 1,000
A116: 농정과 | B116: 용궁면 금남길 58 | C116: 이창우 | D116: 중소형농기계 지원사업 | E116: 민간자본사업보조 | F116: 2,000,000원 * 1대 * 50% | H116: 2,000 | I116: 1,000 | J116: 1,000 | K116: 1,000 | L116: 1,000
A117: 농정과 | B117: 감천면 덕율1길 22 | C117: 김점규 | D117: 중소형농기계 지원사업 | E117: 민간자본사업보조 | F117: 2,000,000원 * 1대 * 50% | H117: 2,000 | I117: 1,000 | J117: 1,000 | K117: 1,000 | L117: 1,000
A118: 농정과 | B118: 감천면 산동길 180-33 | C118: 송웅길 | D118: 중소형농기계 지원사업 | E118: 민간자본사업보조 | F118: 2,000,000원 * 1대 * 50% | H118: 2,000 | I118: 1,000 | J118: 1,000 | K118: 1,000 | L118: 1,000
A119: 농정과 | B119: 감천면 농바우길 18 | C119: 김성년 | D119: 중소형농기계 지원사업 | E119: 민간자본사업보조 | F119: 2,000,000원 * 1대 * 50% | H119: 2,000 | I119: 1,000 | J119: 1,000 | K119: 1,000 | L119: 1,000
A120: 농정과 | B120: 효자면 도효자로 1478 | C120: 이창희 | D120: 중소형농기계 지원사업 | E120: 민간자본사업보조 | F120: 2,000,000원 * 1대 * 50% | H120: 2,000 | I120: 1,000 | J120: 1,000 | K120: 1,000 | L120: 1,000
A121: 농정과 | B121: 호명면 행복로 230, 204동 502호 | C121: 최수봉 | D121: 귀농인 영농기반 지원사업 | E121: 민간자본사업보조 | F121: 5,000,000원 * 1농가 * 80% | H121: 5,000 | I121: 4,000 | J121: 1,000 | K121: 4,000 | L121: 4,000
A122: 농정과 | B122: 지보면 수월3길 166 | C122: 최종식 | D122: 귀농인 영농기반 지원사업 | E122: 민간자본사업보조 | F122: 5,000,000원 * 1농가 * 81% | H122: 5,000 | I122: 4,000 | J122: 1,000 | K122: 4,000 | L122: 4,000
A123: 농정과 | B123: 효자면 도효자로 1487-3 | C123: 이규환 | D123: 귀농인 영농기반 지원사업 | E123: 민간자본사업보조 | F123: 5,000,000원 * 1농가 * 82% | H123: 5,000 | I123: 4,000 | J123: 1,000 | K123: 4,000 | L123: 4,000
A124: 농정과 | B124: 풍양면 수산못길 104 | C124: 최병국 | D124: 귀농인 영농기반 지원사업 | E124: 민간자본사업보조 | F124: 5,000,000원 * 1농가 * 83% | H124: 6,000 | I124: 4,000 | J124: 2,000 | K124: 4,000 | L124: 4,000
A125: 농정과 | B125: 용궁면 외무길 34 | C125: 박순희 | D125: 귀농인 영농기반 지원사업 | E125: 민간자본사업보조 | F125: 5,000,000원 * 1농가 * 80% | H125: 5,000 | I125: 4,000 | J125: 1,000 | K125: 4,000 | L125: 4,000
A126: 농정과 | B126: 풍양면 오지길 25 | C126: 오덕식 | D126: 원예산업육성지원 (양파정식기) | E126: 민간자본사업보조 | F126: 50,000,000원 * 1대 * 50% | H126: 50,000 | I126: 25,000 | J126: 25,000 | K126: =I126 -> 25,000 | L126: =J126 -> 25,000
A127: 농정과 | B127: 풍양면 봉림길 57 | C127: 유창환 | D127: 원예산업육성지원 (양파정식기) | E127: 민간자본사업보조 | F127: 50,000,000원 * 1대 * 50% | H127: 50,000 | I127: 25,000 | J127: 25,000 | K127: =I127 -> 25,000 | L127: =J127 -> 25,000
A128: 농정과 | B128: 예천읍 대심1길 86 | C128: 최태식 | D128: 특용작물(인삼)생산시설현대화 (점적관수사업) | E128: 민간자본사업보조 | F128: 2,000,000원 * 1식 * 50% | H128: 2,000 | I128: =H128*0.5 -> 1,000 | J128: =H128*0.5 -> 1,000 | K128: =I128 -> 1,000 | L128: 1,000
A129: 농정과 | B129: 용문면 사부령길 119 | C129: 김의주 | D129: 특용작물(인삼)생산시설현대화 (점적관수사업) | E129: 민간자본사업보조 | F129: 3,142,000원 * 1식 * 50% | H129: 3,142 | I129: =H129*0.5 -> 1,571 | J129: =H129*0.5 -> 1,571 | K129: 1,571 | L129: 1,571
A130: 농정과 | B130: 감천면 석송로 349-8 | C130: 김규원 | D130: 특용작물(인삼)생산시설현대화 (점적관수사업) | E130: 민간자본사업보조 | F130: 2,000,000원 * 1식 * 50% | H130: 2,000 | I130: 1,000 | J130: 1,000 | K130: 1,000 | L130: 1,000
A131: 농정과 | B131: 유천면 중평천로 328 | C131: 윤장식 | D131: 특용작물(인삼)생산시설현대화 (점적관수사업) | E131: 민간자본사업보조 | F131: 2,000,000원 * 1식 * 50% | H131: 2,000 | I131: 1,000 | J131: 1,000 | K131: 1,000 | L131: 1,000
A132: 소계 | D132: =SUBTOTAL(103,D133:D220)&"건" -> 88건 | G132: =SUBTOTAL(9,G133:G140) -> 0 | H132: =SUBTOTAL(9,H133:H220) -> 173,980 | I132: =SUBTOTAL(9,I133:I220) -> 96,168 | J132: =SUBTOTAL(9,J133:J220) -> 77,812 | K132: =SUBTOTAL(9,K133:K220) -> 96,168 | L132: =SUBTOTAL(9,L133:L220) -> 96,168
A133: 산림축산과 | B133: 호명면 담암길 37-32 | C133: 김종수 | D133: 한우보정용 개체잠금장치 지원사업 | E133: 민간자본사업보조 | F133: 60,000원 * 6두 * 50% | H133: =I133+J133 -> 360 | I133: 180 | J133: 180 | K133: =I133 -> 180 | L133: 180
A134: 산림축산과 | B134: 유천면 예성로 681 | C134: 강상구 | D134: 한우보정용 개체잠금장치 지원사업 | E134: 민간자본사업보조 | F134: 60,000원 * 26두 * 50% | H134: 1,560 | I134: 780 | J134: 780 | K134: 780 | L134: 780
A135: 산림축산과 | B135: 지보면 도화2길 15-9 | C135: 백춘기 | D135: 면역강화용사료첨가제 지원사업 | E135: 민간자본사업보조 | F135: 30,000원 * 15포 * 70% | H135: 450 | I135: 315 | J135: 135 | K135: 315 | L135: 315
A136: 산림축산과 | B136: 예천읍 한천길 37-10 | C136: 김동점 | D136: 면역강화용사료첨가제 지원사업 | E136: 민간자본사업보조 | F136: 30,000원 * 10포 * 70% | H136: 300 | I136: 210 | J136: 90 | K136: 210 | L136: 210
A137: 산림축산과 | B137: 유천면 송전길 1-4 | C137: 정창수 | D137: 어린송아지용양질조사료 지원사업 | E137: 민간자본사업보조 | F137: 600원 * 2,400kg * 30% | H137: 1,440 | I137: 432 | J137: 1,008 | K137: 432 | L137: 432
A138: 산림축산과 | B138: 지보면 지풍로 47-9 | C138: 박기모 | D138: 어린송아지용양질조사료 지원사업 | E138: 민간자본사업보조 | F138: 600원 * 1,200kg * 30% | H138: 720 | I138: 216 | J138: 504 | K138: 216 | L138: 216
A139: 산림축산과 | B139: 풍양면 상풍로1355-5 | C139: 김영복 | D139: 벌꿀 위생저장조 지원사업 | E139: 민간자본사업보조 | F139: 370,000원 * 5개 * 60% | H139: 1,850 | I139: 1,110 | J139: 740 | K139: 1,110 | L139: 1,110
A140: 산림축산과 | B140: 예천읍 땅골못길196-23 | C140: 윤여한 | D140: 벌꿀 위생저장조 지원사업 | E140: 민간자본사업보조 | F140: 370,000원 * 5개 * 60% | H140: 1,850 | I140: 1,110 | J140: 740 | K140: 1,110 | L140: 1,110
A141: 산림축산과 | B141: 풍양면 삼강로743-19 | C141: 홍윤기 | D141: 벌꿀 위생저장조 지원사업 | E141: 민간자본사업보조 | F141: 370,000원 * 5개 * 60% | H141: 1,850 | I141: 1,110 | J141: 740 | K141: 1,110 | L141: 1,110
A142: 산림축산과 | B142: 용문면 금당실길68 | C142: 신현민 | D142: 벌꿀 위생저장조 지원사업 | E142: 민간자본사업보조 | F142: 370,000원 * 5개 * 60% | H142: 1,850 | I142: 1,110 | J142: 740 | K142: 1,110 | L142: 1,110
A143: 산림축산과 | B143: 효자면 도효자로1550-1 | C143: 엄승일 | D143: 벌꿀 위생저장조 지원사업 | E143: 민간자본사업보조 | F143: 370,000원 * 5개 * 60% | H143: 1,850 | I143: 1,110 | J143: 740 | K143: 1,110 | L143: 1,110
A144: 산림축산과 | B144: 용궁면 덕계1길133 | C144: 도재환 | D144: 벌꿀 위생저장조 지원사업 | E144: 민간자본사업보조 | F144: 370,000원 * 5개 * 60% | H144: 1,850 | I144: 1,110 | J144: 740 | K144: 1,110 | L144: 1,110
A145: 산림축산과 | B145: 개포면 동소리길14 | C145: 강기봉 | D145: 벌꿀 위생저장조 지원사업 | E145: 민간자본사업보조 | F145: 370,000원 * 4개 * 60% | H145: 1,480 | I145: 888 | J145: 592 | K145: 888 | L145: 888
A146: 산림축산과 | B146: 유천면 화지2길41 | C146: 윤희흥 | D146: 벌꿀 위생저장조 지원사업 | E146: 민간자본사업보조 | F146: 370,000원 * 3개 * 60% | H146: 1,110 | I146: 666 | J146: 444 | K146: 666 | L146: 666
A147: 산림축산과 | B147: 은풍면 은풍로104 | C147: 박재수 | D147: 벌꿀 위생저장조 지원사업 | E147: 민간자본사업보조 | F147: 370,000원 * 3개 * 60% | H147: 1,110 | I147: 666 | J147: 444 | K147: 666 | L147: 666
A148: 산림축산과 | B148: 은풍면 은풍로63-5 | C148: 김동혁 | D148: 벌꿀 위생저장조 지원사업 | E148: 민간자본사업보조 | F148: 370,000원 * 3개 * 60% | H148: 1,110 | I148: 666 | J148: 444 | K148: 666 | L148: 666
A149: 산림축산과 | B149: 예천읍 충효로635 | C149: 윤진식 | D149: 벌꿀 위생저장조 지원사업 | E149: 민간자본사업보조 | F149: 370,000원 * 3개 * 60% | H149: 1,110 | I149: 666 | J149: 444 | K149: 666 | L149: 666
A150: 산림축산과 | B150: 은풍면 은풍로225-12 | C150: 김문기 | D150: 벌꿀 위생저장조 지원사업 | E150: 민간자본사업보조 | F150: 370,000원 * 3개 * 60% | H150: 1,110 | I150: 666 | J150: 444 | K150: 666 | L150: 666
A151: 산림축산과 | B151: 유천면 수심1길98 | C151: 김홍선 | D151: 벌꿀 위생저장조 지원사업 | E151: 민간자본사업보조 | F151: 370,000원 * 3개 * 60% | H151: 1,110 | I151: 666 | J151: 444 | K151: 666 | L151: 666
A152: 산림축산과 | B152: 용문면 상금시장길27 | C152: 신정균 | D152: 벌꿀 위생저장조 지원사업 | E152: 민간자본사업보조 | F152: 370,000원 * 2개 * 60% | H152: 740 | I152: 444 | J152: 296 | K152: 444 | L152: 444
A153: 산림축산과 | B153: 유천면 초적길20 | C153: 최병홍 | D153: 벌꿀 위생저장조 지원사업 | E153: 민간자본사업보조 | F153: 370,000원 * 2개 * 60% | H153: 740 | I153: 444 | J153: 296 | K153: 444 | L153: 444
A154: 산림축산과 | B154: 용궁면 월오길72 | C154: 안용식 | D154: 벌꿀 위생저장조 지원사업 | E154: 민간자본사업보조 | F154: 370,000원 * 2개 * 60% | H154: 740 | I154: 444 | J154: 296 | K154: 444 | L154: 444
A155: 산림축산과 | B155: 은풍면 거록길14-5 | C155: 이영기 | D155: 벌꿀 위생저장조 지원사업 | E155: 민간자본사업보조 | F155: 370,000원 * 2개 * 60% | H155: 740 | I155: 444 | J155: 296 | K155: 444 | L155: 444
A156: 산림축산과 | B156: 유천면 손기길63 | C156: 배세후 | D156: 벌꿀 위생저장조 지원사업 | E156: 민간자본사업보조 | F156: 370,000원 * 2개 * 60% | H156: 740 | I156: 444 | J156: 296 | K156: 444 | L156: 444
A157: 산림축산과 | B157: 은풍면 내동길62 | C157: 김태석 | D157: 벌꿀 위생저장조 지원사업 | E157: 민간자본사업보조 | F157: 370,000원 * 1개 * 60% | H157: 370 | I157: 222 | J157: 148 | K157: 222 | L157: 222
A158: 산림축산과 | B158: 보문면 읍실길194-7 | C158: 임덕규 | D158: 벌꿀 위생저장조 지원사업 | E158: 민간자본사업보조 | F158: 370,000원 * 1개 * 60% | H158: 370 | I158: 222 | J158: 148 | K158: 222 | L158: 222
A159: 산림축산과 | B159: 용문면 금당실길51-11 | C159: 박우상 | D159: 벌꿀 위생저장조 지원사업 | E159: 민간자본사업보조 | F159: 370,000원 * 1개 * 60% | H159: 370 | I159: 222 | J159: 148 | K159: 222 | L159: 222
A160: 산림축산과 | B160: 효자면 은풍로730-33 | C160: 유세진 | D160: 벌꿀 위생저장조 지원사업 | E160: 민간자본사업보조 | F160: 370,000원 * 1개 * 60% | H160: 370 | I160: 222 | J160: 148 | K160: 222 | L160: 222
A161: 산림축산과 | B161: 감천면 덕거리길125 | C161: 이규정 | D161: 벌꿀 위생저장조 지원사업 | E161: 민간자본사업보조 | F161: 370,000원 * 1개 * 60% | H161: 370 | I161: 222 | J161: 148 | K161: 222 | L161: 222
A162: 산림축산과 | B162: 감천면 벌방1길79 | C162: 박승후 | D162: 벌꿀 위생저장조 지원사업 | E162: 민간자본사업보조 | F162: 370,000원 * 1개 * 60% | H162: 370 | I162: 222 | J162: 148 | K162: 222 | L162: 222
A163: 산림축산과 | B163: 유천면 중평길31-26 | C163: 박종열 | D163: 벌꿀 위생저장조 지원사업 | E163: 민간자본사업보조 | F163: 370,000원 * 1개 * 60% | H163: 370 | I163: 222 | J163: 148 | K163: 222 | L163: 222
A164: 산림축산과 | B164: 효자면 은풍로862-9 | C164: 최병동 | D164: 벌꿀 위생저장조 지원사업 | E164: 민간자본사업보조 | F164: 370,000원 * 1개 * 60% | H164: 370 | I164: 222 | J164: 148 | K164: 222 | L164: 222
A165: 산림축산과 | B165: 은풍면 은풍로75 | C165: 이종환 | D165: 벌꿀 위생저장조 지원사업 | E165: 민간자본사업보조 | F165: 370,000원 * 1개 * 60% | H165: 370 | I165: 222 | J165: 148 | K165: 222 | L165: 222
A166: 산림축산과 | B166: 유천면 손기길67 | C166: 양근호 | D166: 벌꿀 위생저장조 지원사업 | E166: 민간자본사업보조 | F166: 370,000원 * 1개 * 60% | H166: 370 | I166: 222 | J166: 148 | K166: 222 | L166: 222
A167: 산림축산과 | B167: 효자면 무장길75-3 | C167: 이영식 | D167: 벌꿀 위생저장조 지원사업 | E167: 민간자본사업보조 | F167: 370,000원 * 1개 * 60% | H167: 370 | I167: 222 | J167: 148 | K167: 222 | L167: 222
A168: 산림축산과 | B168: 호명면 행복로215 | C168: 김천동 | D168: 벌꿀 위생저장조 지원사업 | E168: 민간자본사업보조 | F168: 370,000원 * 1개 * 60% | H168: 370 | I168: 222 | J168: 148 | K168: 222 | L168: 222
A169: 산림축산과 | B169: 효자면 석항명봉로1310 | C169: 김형식 | D169: 벌꿀 위생저장조 지원사업 | E169: 민간자본사업보조 | F169: 370,000원 * 1개 * 60% | H169: 370 | I169: 222 | J169: 148 | K169: 222 | L169: 222
A170: 산림축산과 | B170: 호명면 강변로442 | C170: 배영석 | D170: 벌꿀 위생저장조 지원사업 | E170: 민간자본사업보조 | F170: 370,000원 * 1개 * 60% | H170: 370 | I170: 222 | J170: 148 | K170: 222 | L170: 222
A171: 산림축산과 | B171: 감천면 범바우길151-55 | C171: 천필규 | D171: 벌꿀 위생저장조 지원사업 | E171: 민간자본사업보조 | F171: 370,000원 * 1개 * 60% | H171: 370 | I171: 222 | J171: 148 | K171: 222 | L171: 222
A172: 산림축산과 | B172: 은풍면 도효자로 1007 | C172: 김수락 | D172: 벌꿀 위생저장조 지원사업 | E172: 민간자본사업보조 | F172: 370,000원 * 1개 * 60% | H172: 370 | I172: 222 | J172: 148 | K172: 222 | L172: 222
A173: 산림축산과 | B173: 은풍면 은풍로78-7 | C173: 최성호 | D173: 벌꿀 위생저장조 지원사업 | E173: 민간자본사업보조 | F173: 370,000원 * 1개 * 60% | H173: 370 | I173: 222 | J173: 148 | K173: 222 | L173: 222
A174: 산림축산과 | B174: 효자면 상사곡길57 | C174: 최병호 | D174: 벌꿀 위생저장조 지원사업 | E174: 민간자본사업보조 | F174: 370,000원 * 1개 * 60% | H174: 370 | I174: 222 | J174: 148 | K174: 222 | L174: 222
A175: 산림축산과 | B175: 호명면 양궁로555-5 | C175: 김사대 | D175: 토종벌 종보전 지원사업 | E175: 민간자본사업보조 | F175: 500,000원 * 3군 * 80% | H175: 1,500 | I175: 1,200 | J175: 300 | K175: 1,200 | L175: 1,200
A176: 산림축산과 | B176: 예천읍 효자로74-3 | C176: 김재수 | D176: 토종벌 종보전 지원사업 | E176: 민간자본사업보조 | F176: 500,000원 * 3군 * 80% | H176: 1,500 | I176: 1,200 | J176: 300 | K176: 1,200 | L176: 1,200
A177: 산림축산과 | B177: 개포면 송담길111-66 | C177: 권혁대 | D177: 토종벌 종보전 지원사업 | E177: 민간자본사업보조 | F177: 500,000원 * 3군 * 80% | H177: 1,500 | I177: 1,200 | J177: 300 | K177: 1,200 | L177: 1,200
A178: 산림축산과 | B178: 개포면 가오실길38-5 | C178: 이장식 | D178: 토종벌 종보전 지원사업 | E178: 민간자본사업보조 | F178: 500,000원 * 3군 * 80% | H178: 1,500 | I178: 1,200 | J178: 300 | K178: 1,200 | L178: 1,200
A179: 산림축산과 | B179: 용문면 직동길143-3 | C179: 임환철 | D179: 토종벌 종보전 지원사업 | E179: 민간자본사업보조 | F179: 500,000원 * 2군 * 80% | H179: 1,000 | I179: 800 | J179: 200 | K179: 800 | L179: 800
A180: 산림축산과 | B180: 호명면 강변로442 | C180: 배영석 | D180: 토종벌 종보전 지원사업 | E180: 민간자본사업보조 | F180: 500,000원 * 1군 * 80% | H180: 500 | I180: 400 | J180: 100 | K180: 400 | L180: 400
A181: 산림축산과 | B181: 용문면 용문사길389-12 | C181: 윤홍수 | D181: 토종벌 종보전 지원사업 | E181: 민간자본사업보조 | F181: 500,000원 * 1군 * 80% | H181: 500 | I181: 400 | J181: 100 | K181: 400 | L181: 400
A182: 산림축산과 | B182: 호명면 봉호로4241-16 | C182: 박성순 | D182: 토종벌 종보전 지원사업 | E182: 민간자본사업보조 | F182: 500,000원 * 1군 * 80% | H182: 500 | I182: 400 | J182: 100 | K182: 400 | L182: 400
A183: 산림축산과 | B183: 호명면 봉호로4241-16 | C183: 박금순 | D183: 토종벌 종보전 지원사업 | E183: 민간자본사업보조 | F183: 500,000원 * 1군 * 80% | H183: 500 | I183: 400 | J183: 100 | K183: 400 | L183: 400
A184: 산림축산과 | B184: 보문면 보문사길226-18 | C184: 조연자 | D184: 토종벌 종보전 지원사업 | E184: 민간자본사업보조 | F184: 500,000원 * 1군 * 80% | H184: 500 | I184: 400 | J184: 100 | K184: 400 | L184: 400
A185: 산림축산과 | B185: 예천읍 새동네길10-14 | C185: 박주섭 | D185: 토종벌 종보전 지원사업 | E185: 민간자본사업보조 | F185: 500,000원 * 1군 * 80% | H185: 500 | I185: 400 | J185: 100 | K185: 400 | L185: 400
A186: 산림축산과 | B186: 호명면 논실길83 | C186: 김병원 | D186: 토종벌 종보전 지원사업 | E186: 민간자본사업보조 | F186: 500,000원 * 1군 * 80% | H186: 500 | I186: 400 | J186: 100 | K186: 400 | L186: 400
A187: 산림축산과 | B187: 효자면 도효자로2085 | C187: 엄영식 | D187: 토종벌 종보전 지원사업 | E187: 민간자본사업보조 | F187: 500,000원 * 1군 * 80% | H187: 500 | I187: 400 | J187: 100 | K187: 400 | L187: 400
A188: 산림축산과 | B188: 호명면 소망실길43-5 | C188: 양재범 | D188: 토종벌 종보전 지원사업 | E188: 민간자본사업보조 | F188: 500,000원 * 1군 * 80% | H188: 500 | I188: 400 | J188: 100 | K188: 400 | L188: 400
A189: 산림축산과 | B189: 효자면 음달마길19 | C189: 황보섭 | D189: 토종벌 종보전 지원사업 | E189: 민간자본사업보조 | F189: 500,000원 * 1군 * 80% | H189: 500 | I189: 400 | J189: 100 | K189: 400 | L189: 400
A190: 산림축산과 | B190: 효자면 원용두길51-48 | C190: 박명환 | D190: 토종벌 종보전 지원사업 | E190: 민간자본사업보조 | F190: 500,000원 * 1군 * 80% | H190: 500 | I190: 400 | J190: 100 | K190: 400 | L190: 400
A191: 산림축산과 | B191: 용문면 직동길147 | C191: 임순규 | D191: 토종벌 종보전 지원사업 | E191: 민간자본사업보조 | F191: 500,000원 * 1군 * 80% | H191: 500 | I191: 400 | J191: 100 | K191: 400 | L191: 400
A192: 산림축산과 | B192: 효자면 원용두길105 | C192: 박인철 | D192: 토종벌 종보전 지원사업 | E192: 민간자본사업보조 | F192: 500,000원 * 1군 * 80% | H192: 500 | I192: 400 | J192: 100 | K192: 400 | L192: 400
A193: 산림축산과 | B193: 효자면 용소마길41-3 | C193: 박대규 | D193: 토종벌 종보전 지원사업 | E193: 민간자본사업보조 | F193: 500,000원 * 1군 * 80% | H193: 500 | I193: 400 | J193: 100 | K193: 400 | L193: 400
A194: 산림축산과 | B194: 효자면 은풍로864-4 | C194: 박노욱 | D194: 토종벌 종보전 지원사업 | E194: 민간자본사업보조 | F194: 500,000원 * 1군 * 80% | H194: =I194+J194 -> 500 | I194: 400 | J194: 100 | K194: =I194 -> 400 | L194: 400
A195: 산림축산과 | B195: 보문면 무근열길168 | C195: 이재길 | D195: 토종벌 종보전 지원사업 | E195: 민간자본사업보조 | F195: 500,000원 * 1군 * 80% | H195: 500 | I195: 400 | J195: 100 | K195: 400 | L195: 400
A196: 산림축산과 | B196: 예천읍 구남골길 111 | C196: 진승환 | D196: 불량모돈 갱신 지원사업 | E196: 민간자본사업보조 | F196: 600,000원 * 4두 * 50% | H196: 2,400 | I196: 1,200 | J196: 1,200 | K196: 1,200 | L196: 1,200
A197: 산림축산과 | B197: 호명면 내신1길 147 | C197: 이상희 | D197: 불량모돈 갱신 지원사업 | E197: 민간자본사업보조 | F197: 600,000원 * 5두 * 50% | H197: 3,000 | I197: 1,500 | J197: 1,500 | K197: 1,500 | L197: 1,500
A198: 산림축산과 | B198: 개포면 예지로 1107-23 | C198: 윤창수 | D198: 불량모돈 갱신 지원사업 | E198: 민간자본사업보조 | F198: 600,000원 * 6두 * 50% | H198: 3,600 | I198: 1,800 | J198: 1,800 | K198: 1,800 | L198: 1,800
A199: 산림축산과 | B199: 풍양면 영풍로 367-73 | C199: 장봉진 | D199: 불량모돈 갱신 지원사업 | E199: 민간자본사업보조 | F199: 600,000원 * 4두 * 50% | H199: 2,400 | I199: 1,200 | J199: 1,200 | K199: 1,200 | L199: 1,200
A200: 산림축산과 | B200: 개포면 동소리길 178-9 | C200: 이청우 | D200: 불량모돈 갱신 지원사업 | E200: 민간자본사업보조 | F200: 600,000원 * 3두 * 50% | H200: 1,800 | I200: 900 | J200: 900 | K200: 900 | L200: 900
... 20 more rows
